bitfinex/quotes_SOLUSD_20230104
["timestamp","ask_amount","ask_price","bid_price","bid_amount"]
[1672813386661,54.34,13.816,13.805,44.4687]
[1672813387268,54.34,13.816,13.806,30.0]
[1672813387491,54.34,13.816,13.807,20.0]
[1672813387715,54.34,13.816,13.808,41.05583084]
[1672813387905,54.34,13.816,13.809,20.0]
[1672813388113,54.34,13.816,13.807,44.4785]
[1672813388329,76.9731,13.819,13.808,30.0]
[1672813388538,54.32,13.819,13.809,20.0]
[1672813390431,84.32,13.819,13.809,20.0]
[1672813390756,30.0,13.818,13.788,936.31058284]
[1672813390982,213.7616,13.817,13.799,42.9456]
[1672813391286,30.0,13.816,13.8,30.0]
[1672813391502,54.34,13.815,13.8,30.0]
[1672813391697,54.34,13.815,13.799,52.9456]
[1672813391916,30.0,13.814,13.799,52.9456]
[1672813392117,54.35,13.813,13.799,52.9456]
[1672813392326,54.35,13.813,13.8,30.0]
[1672813393400,54.35,13.813,13.799,22.9456]
[1672813393597,5.97,13.81,13.799,22.9456]
[1672813393813,54.36,13.809,13.799,22.9456]
[1672813394219,30.0,13.808,13.799,22.9456]
[1672813394444,54.37,13.807,13.8,20.0]
[1672813394653,30.0,13.806,13.778,812.5]
[1672813394876,5.97,13.8,13.785,166.9836]
[1672813395082,54.4,13.799,13.785,166.9836]
[1672813395279,30.0,13.798,13.785,166.9836]
[1672813395497,54.41,13.797,13.785,166.9836]
[1672813396123,54.41,13.797,13.786,20.0]
[1672813396452,54.41,13.797,13.785,166.9836]
[1672813397055,30.0,13.796,13.785,166.9836]
[1672813397600,54.41,13.797,13.786,20.0]
[1672813397813,30.0,13.797,13.786,20.0]
[1672813398007,54.41,13.796,13.786,20.0]
[1672813398218,54.41,13.798,13.786,20.0]
[1672813398758,54.41,13.798,13.786,50.0]
[1672813399287,54.4,13.799,13.786,20.0]
[1672813399479,54.4,13.799,13.786,67.0215]
[1672813400863,30.0,13.798,13.786,67.0215]
[1672813401259,30.0,13.796,13.786,67.0215]
[1672813401804,30.0,13.796,13.765,120.50653513]
[1672813402117,5.97,13.79,13.774,92.582]
[1672813402332,5.97,13.79,13.776,30.0]
[1672813402536,5.97,13.79,13.777,20.0]
[1672813402756,5.97,13.79,13.776,30.0]
[1672813404326,29.82,13.79,13.775,167.6771]
[1672813404536,84.26,13.79,13.775,167.6771]
[1672813404967,84.26,13.79,13.776,30.0]
[1672813405171,5.94,13.79,13.777,20.0]
[1672813406119,173.478,13.792,13.778,30.0]
[1672813406439,119.048,13.792,13.779,20.0]
[1672813407067,119.048,13.792,13.78,30.0]
[1672813407473,59.86,13.8,13.78,30.0]
[1672813407474,54.41,13.798,13.78,30.0]
[1672813407684,113.2909,13.798,13.781,133.1437]
[1672813407914,113.2909,13.798,13.782,30.0]
[1672813408110,113.2909,13.798,13.784,30.0]
[1672813408312,113.2909,13.798,13.785,20.0]
[1672813408525,113.2909,13.798,13.786,30.0]
[1672813408755,54.39,13.802,13.787,20.0]
[1672813408963,54.39,13.802,13.788,30.0]
[1672813409280,54.39,13.802,13.789,20.0]
[1672813409887,54.39,13.803,13.789,20.0]
[1672813410104,54.38,13.804,13.789,20.0]
[1672813410330,30.0,13.803,13.789,20.0]
[1672813410545,54.39,13.802,13.789,20.0]
[1672813410943,30.0,13.801,13.789,20.0]
[1672813411165,54.4,13.8,13.788,20.0]
[1672813411512,54.39,13.802,13.789,51.89481238]
[1672813411700,54.38,13.804,13.79,20.0]
[1672813413467,30.0,13.803,13.79,20.0]
[1672813413676,54.39,13.802,13.79,20.0]
[1672813413898,54.39,13.802,13.789,20.0]
[1672813415289,54.39,13.803,13.789,20.0]
[1672813415492,54.38,13.804,13.789,20.0]
[1672813415707,54.38,13.804,13.79,30.0]
[1672813417474,54.38,13.804,13.789,41.89481238]
[1672813417693,30.0,13.803,13.789,20.0]
[1672813417901,23.92,13.8,13.789,20.0]
[1672813418129,54.39,13.802,13.789,41.89481238]
[1672813418859,54.39,13.803,13.789,41.89481238]
[1672813419484,54.39,13.803,13.79,30.0]
[1672813419904,54.39,13.803,13.79,51.89481238]
[1672813420218,54.39,13.803,13.789,20.0]
[1672813421053,23.92,13.8,13.789,20.0]
[1672813421470,54.4,13.799,13.789,20.0]
[1672813422109,54.4,13.799,13.789,50.0]
[1672813422522,54.4,13.799,13.789,20.0]
[1672813423884,23.92,13.8,13.789,20.0]
[1672813424095,23.92,13.8,13.789,50.0]
[1672813424321,23.92,13.8,13.79,21.89481238]
[1672813424730,23.92,13.8,13.789,50.0]
[1672813425147,23.92,13.8,13.789,71.89481238]
[1672813426546,23.92,13.8,13.79,30.0]
[1672813428522,23.92,13.8,13.789,50.0]
[1672813428727,54.4,13.799,13.789,20.0]
[1672813430739,54.4,13.799,13.789,50.0]
[1672813431053,54.4,13.799,13.789,20.0]
[1672813432522,54.4,13.799,13.789,50.0]
[1672813433357,54.4,13.799,13.789,20.0]
[1672813433803,54.4,13.799,13.789,50.0]
[1672813435058,54.4,13.799,13.789,20.0]
[1672813436006,54.4,13.799,13.789,50.0]
[1672813436843,54.4,13.799,13.79,51.89481238]
[1672813437043,23.88,13.8,13.79,51.89481238]
[1672813437675,54.39,13.801,13.791,21.89481238]
[1672813437905,54.38,13.804,13.792,50.0]
[1672813438116,46.3095,13.807,13.792,74.1557]
[1672813438426,54.37,13.806,13.794,30.0]
[1672813438743,54.37,13.806,13.792,30.0]
[1672813439059,54.38,13.804,13.792,30.0]
[1672813439788,54.38,13.804,13.79,30.0]
[1672813440320,54.38,13.804,13.791,21.89481238]
[1672813441049,54.38,13.804,13.788,54.1557]
[1672813441265,54.38,13.804,13.789,51.89481238]
[1672813441455,54.38,13.804,13.79,20.0]
[1672813442417,54.38,13.804,13.79,41.89481238]
[1672813443452,54.38,13.804,13.791,30.0]
[1672813443661,54.38,13.804,13.792,20.0]
[1672813443995,54.38,13.804,13.793,30.0]
[1672813444187,54.37,13.806,13.794,20.0]
[1672813444517,54.37,13.806,13.794,41.89481238]
[1672813444723,54.37,13.806,13.789,52.7777]
[1672813444724,30.0,13.805,13.789,22.7777]
[1672813444943,50.07,13.804,13.789,45.3587]
[1672813445147,23.92,13.8,13.79,21.89481238]
[1672813445368,54.4,13.799,13.79,21.89481238]
[1672813445791,23.92,13.8,13.79,21.89481238]
[1672813446310,54.4,13.799,13.79,21.89481238]
[1672813446529,54.4,13.799,13.789,45.3587]
[1672813446724,54.4,13.799,13.79,20.0]
[1672813447663,54.4,13.799,13.791,21.89481238]
[1672813447887,54.4,13.799,13.79,20.0]
[1672813451247,30.0,13.798,13.79,20.0]
[1672813451459,54.41,13.797,13.766,349.62373081]
[1672813451671,54.41,13.797,13.765,170.3030785]
[1672813451672,119.7,13.79,13.776,30.0]
[1672813451874,54.44,13.789,13.777,48.4655]
[1672813452080,54.44,13.789,13.777,70.36031238]
[1672813452291,54.44,13.789,13.778,21.89481238]
[1672813452503,54.44,13.789,13.779,30.0]
[1672813452847,54.44,13.789,13.78,21.89481238]
[1672813453359,24.11,13.79,13.779,24.7095]
[1672813453578,30.0,13.788,13.779,24.7095]
[1672813453759,54.45,13.787,13.779,24.7095]
[1672813453969,54.44,13.789,13.779,24.7095]
[1672813454730,30.0,13.788,13.779,24.7095]
[1672813454941,54.45,13.787,13.78,20.0]
[1672813455463,30.0,13.786,13.78,20.0]
[1672813455779,54.46,13.785,13.78,20.0]
[1672813457563,54.45,13.787,13.78,20.0]
[1672813458603,84.45,13.788,13.78,20.0]
[1672813458813,54.45,13.788,13.78,20.0]
[1672813460080,54.44,13.789,13.78,20.0]
[1672813460495,24.11,13.79,13.782,30.0]
[1672813461449,24.11,13.79,13.781,30.0]
[1672813464177,24.11,13.79,13.78,20.0]
[1672813466161,24.11,13.79,13.781,30.0]
[1672813467873,47.2366,13.792,13.781,30.0]
[1672813468084,22.9648,13.795,13.782,20.0]
[1672813468085,54.42,13.795,13.782,20.0]
[1672813468308,117.759,13.796,13.783,30.0]
[1672813468519,117.759,13.796,13.784,42.9577]
[1672813468728,117.759,13.796,13.785,30.0]
[1672813468928,117.759,13.796,13.785,100.25150424]
[1672813469135,117.759,13.796,13.786,20.0]
[1672813469670,117.759,13.796,13.786,41.89481238]
[1672813472298,117.759,13.796,13.787,30.0]
[1672813472494,117.759,13.796,13.788,20.0]
[1672813472703,47.6894,13.798,13.788,20.0]
[1672813473024,54.4,13.799,13.788,20.0]
[1672813473441,23.94,13.8,13.789,30.0]
[1672813473648,23.94,13.8,13.79,20.0]
[1672813474091,54.4,13.799,13.79,20.0]
[1672813474305,23.94,13.8,13.79,20.0]
[1672813475454,54.39,13.801,13.791,30.0]
[1672813475670,47.9532,13.802,13.791,51.89481238]
[1672813476294,54.39,13.803,13.791,51.89481238]
[1672813476488,78.8013,13.807,13.793,30.0]
[1672813476705,78.8013,13.807,13.794,20.0]
[1672813476927,78.8013,13.807,13.795,30.0]
[1672813477123,78.8013,13.807,13.796,20.0]
[1672813478085,54.37,13.807,13.797,30.0]
[1672813478486,54.37,13.807,13.798,20.0]
[1672813478920,54.37,13.807,13.798,41.89481238]
[1672813479159,54.36,13.81,13.799,30.0]
[1672813479371,54.36,13.81,13.799,100.67460424]
[1672813479564,54.36,13.81,13.799,122.56941662]
[1672813479773,54.36,13.81,13.799,100.67460424]
[1672813480836,54.36,13.81,13.799,70.67460424]
[1672813481039,54.36,13.81,13.799,23.3808]
[1672813481666,54.36,13.81,13.8,30.0]
[1672813483890,54.33,13.818,13.801,20.0]
[1672813484104,47.1802,13.818,13.802,116.6487]
[1672813484291,54.33,13.817,13.803,50.0]
[1672813484505,54.33,13.817,13.805,30.0]
[1672813485132,54.33,13.817,13.806,20.0]
[1672813485344,54.33,13.817,13.807,30.0]
[1672813485557,54.33,13.817,13.808,20.0]
[1672813485779,54.33,13.818,13.808,20.0]
[1672813486719,54.33,13.818,13.808,50.0]
[1672813487678,54.33,13.818,13.808,20.0]
[1672813488196,54.33,13.818,13.809,30.0]
[1672813488394,54.33,13.818,13.808,89.18861662]
[1672813488607,118.8358,13.819,13.808,89.18861662]
[1672813488926,54.33,13.818,13.808,67.29380424]
[1672813491767,54.33,13.818,13.808,89.18861662]
[1672813491979,173.1558,13.819,13.808,89.18861662]
[1672813492402,54.32,13.82,13.808,89.18861662]
[1672813492597,54.32,13.82,13.808,254.40911662]
[1672813493855,54.32,13.821,13.808,254.40911662]
[1672813494381,30.0,13.82,13.808,254.40911662]
[1672813494713,54.32,13.819,13.808,254.40911662]
[1672813495119,54.32,13.821,13.809,30.0]
[1672813495329,54.32,13.821,13.809,52.6174]
[1672813495551,54.32,13.821,13.809,22.6174]
[1672813496706,30.0,13.819,13.809,22.6174]
[1672813496899,30.0,13.817,13.809,22.6174]
[1672813497112,54.34,13.816,13.809,22.6174]
[1672813497445,30.0,13.815,13.797,23.7031]
[1672813497651,23.92,13.81,13.798,159.9113]
[1672813497967,54.36,13.809,13.798,159.9113]
[1672813498577,54.36,13.809,13.799,20.0]
[1672813500276,149.2346778,13.847,13.801,30.0]
[1672813500492,149.2346778,13.847,13.809,54.36]
[1672813500493,47.636126,13.828,13.809,54.36]
[1672813500703,47.636126,13.828,13.81,76.5885768]
[1672813501018,47.136126,13.828,13.811,30.0]
[1672813501214,47.136126,13.828,13.811,116.03707957]
[1672813501425,47.136126,13.828,13.813,30.0]
[1672813501629,47.136126,13.828,13.814,20.0]
[1672813501854,47.136126,13.828,13.815,30.0]
[1672813502048,47.136126,13.828,13.816,20.0]
[1672813502268,47.136126,13.828,13.816,84.14226719]
[1672813502475,47.136126,13.828,13.816,146.10353809]
[1672813502798,47.136126,13.828,13.817,64.14226719]
[1672813503009,47.136126,13.828,13.818,20.0]
[1672813503325,47.136126,13.828,13.818,84.14226719]
[1672813503537,47.136126,13.828,13.819,30.0]
[1672813503954,47.136126,13.828,13.82,64.14226719]
[1672813504583,47.136126,13.828,13.821,61.59872139]
[1672813504808,47.136126,13.828,13.822,30.0]
[1672813505119,47.136126,13.828,13.825,50.33679375]
[1672813505333,47.136126,13.828,13.827,50.33679375]
[1672813505529,47.136126,13.828,13.825,114.47906094]
[1672813505748,47.136126,13.828,13.827,50.33679375]
[1672813507007,47.136126,13.828,13.827,114.44707574]
[1672813507213,47.136126,13.828,13.827,126.07155289]
[1672813507427,47.136126,13.828,13.827,190.95163737]
[1672813507635,41.636126,13.828,13.827,190.95163737]
[1672813508781,58.3524318,13.836,13.831,79.07024491]
[1672813508993,58.3524318,13.836,13.833,30.0]
[1672813509206,58.3524318,13.836,13.834,67.34097508]
[1672813509416,58.3524318,13.836,13.831,79.07024491]
[1672813509417,58.3524318,13.836,13.832,67.34097508]
[1672813509629,58.3524318,13.836,13.833,30.0]
[1672813509856,58.3524318,13.836,13.835,30.0]
[1672813510163,58.3524318,13.836,13.835,67.34097508]
[1672813510356,124.4535438,13.836,13.835,67.34097508]
[1672813511402,124.4535438,13.836,13.831,79.07024491]
[1672813511403,178.7135438,13.836,13.831,79.07024491]
[1672813511635,30.0,13.834,13.831,4.491e-05]
[1672813511842,30.0,13.832,13.831,4.491e-05]
[1672813512161,84.27,13.832,13.831,4.491e-05]
[1672813513520,94.09212178,13.832,13.831,4.491e-05]
[1672813513733,114.09212178,13.832,13.831,4.491e-05]
[1672813513922,84.27,13.832,13.831,4.491e-05]
[1672813514360,104.27,13.832,13.831,4.491e-05]
[1672813527832,114.09212178,13.832,13.831,4.491e-05]
[1672813529389,30.0,13.831,13.794,20.0]
[1672813529718,23.69,13.81,13.799,113.2722]
[1672813530035,23.69,13.81,13.797,71.6842]
[1672813530251,23.69,13.81,13.8,21.89481238]
[1672813530443,23.69,13.81,13.797,71.6842]
[1672813530651,76.0498937,13.81,13.797,71.6842]
[1672813530877,30.0,13.809,13.797,71.6842]
[1672813531177,76.0498937,13.81,13.797,71.6842]
[1672813531393,76.0498937,13.81,13.797,125.41213757]
[1672813531589,30.0,13.809,13.797,147.30694995]
[1672813532642,82.3598937,13.809,13.797,125.41213757]
[1672813532870,82.3598937,13.809,13.798,20.0]
[1672813533704,52.3598937,13.809,13.798,20.0]
[1672813534327,52.3598937,13.809,13.799,30.0]
[1672813534537,52.3598937,13.809,13.8,20.0]
[1672813534755,52.3598937,13.809,13.8,73.72793757]
[1672813534971,52.3598937,13.809,13.801,30.0]
[1672813537183,52.3598937,13.809,13.8,73.72793757]
[1672813537814,52.3598937,13.809,13.8,20.0]
[1672813538548,52.3598937,13.809,13.799,20.0]
[1672813539695,52.3598937,13.809,13.8,30.0]
[1672813540739,52.3598937,13.809,13.802,30.0]
[1672813541275,52.3598937,13.809,13.803,21.89481238]
[1672813541475,52.3598937,13.809,13.804,30.0]
[1672813541679,52.3598937,13.809,13.804,136.12520565]
[1672813541889,52.3598937,13.809,13.806,30.0]
[1672813542323,52.3598937,13.809,13.806,105.62274995]
[1672813542530,52.3598937,13.809,13.806,83.72793757]
[1672813542741,9.37e-05,13.809,13.806,105.62274995]
[1672813542933,9.37e-05,13.809,13.808,30.0]
[1672813543141,9.37e-05,13.809,13.808,50.0]
[1672813543668,9.37e-05,13.809,13.808,178.02001803]
[1672813544094,9.37e-05,13.809,13.808,225.38851803]
[1672813544745,9.37e-05,13.809,13.808,343.24231803]
[1672813546420,13.7412183,13.828,13.809,30.0]
[1672813546632,13.7412183,13.828,13.811,30.0]
[1672813547035,13.7412183,13.828,13.813,30.0]
[1672813547361,13.7412183,13.828,13.814,168.09194901]
[1672813547580,13.7412183,13.828,13.815,30.0]
[1672813547788,13.7412183,13.828,13.815,198.09194901]
[1672813547982,13.7412183,13.828,13.816,128.02001803]
[1672813548312,13.7412183,13.828,13.818,30.0]
[1672813548518,13.7412183,13.828,13.82,30.0]
[1672813548926,13.7412183,13.828,13.821,74.29208046]
[1672813549137,13.7412183,13.828,13.822,30.0]
[1672813549453,13.7412183,13.828,13.822,105.62274995]
[1672813550302,13.7412183,13.828,13.824,30.0]
[1672813551774,13.7412183,13.828,13.823,106.12520565]
[1672813551984,13.7412183,13.828,13.819,20.0]
[1672813556294,13.7412183,13.828,13.815,45.42120808]
[1672813556507,13.7412183,13.828,13.81,0.06]
[1672813556508,30.0,13.826,13.811,115.6472]
[1672813556827,54.3,13.825,13.811,115.6472]
[1672813557449,54.3,13.825,13.812,30.0]
[1672813557660,13.7412183,13.828,13.825,54.3]
[1672813557865,13.7412183,13.828,13.826,30.0]
[1672813558079,13.7412183,13.828,13.826,87.76188032]
[1672813558293,13.7412183,13.828,13.827,109.25097519]
[1672813558491,13.7412183,13.828,13.827,167.01285551]
[1672813558701,0.0012183,13.828,13.827,188.90766789]
[1672813558912,84.23,13.843,13.828,57.4812183]
[1672813559127,84.23,13.843,13.829,20.0]
[1672813559338,84.23,13.843,13.83,30.0]
[1672813559553,54.23,13.843,13.83,197.01274992]
[1672813559758,54.23,13.843,13.83,218.9075623]
[1672813559973,30.0,13.843,13.832,30.0]
[1672813560173,217.5559,13.844,13.832,30.0]
[1672813560382,30.0,13.843,13.834,30.0]
[1672813560809,30.0,13.843,13.835,167.01274992]
[1672813561033,30.0,13.843,13.835,109.25097519]
[1672813561457,30.0,13.841,13.835,109.25097519]
[1672813562197,30.0,13.841,13.829,20.0]
[1672813562516,30.0,13.841,13.831,109.25097519]
[1672813564090,30.0,13.839,13.831,109.25097519]
[1672813564613,54.25,13.838,13.827,20.0]
[1672813564801,54.25,13.838,13.825,20.0]
[1672813566083,54.25,13.838,13.825,139.9675323]
[1672813566501,54.24,13.839,13.826,30.0]
[1672813566701,30.0,13.841,13.827,20.0]
[1672813566910,54.24,13.84,13.827,161.86234468]
[1672813567122,54.24,13.84,13.828,92.20575757]
[1672813567331,54.24,13.84,13.829,20.0]
[1672813567752,30.0,13.839,13.829,20.0]
[1672813569325,54.24,13.84,13.83,21.89481238]
[1672813569748,54.25,13.838,13.83,21.89481238]
[1672813570287,30.0,13.839,13.829,20.0]
[1672813570482,30.0,13.839,13.826,20.0]
[1672813571125,30.0,13.839,13.825,20.0]
[1672813571440,30.0,13.839,13.825,41.89481238]
[1672813571756,30.0,13.839,13.825,20.0]
[1672813572479,30.0,13.835,13.825,20.0]
[1672813572687,30.0,13.835,13.824,46.3442]
[1672813572939,30.0,13.829,13.824,46.3442]
[1672813573125,30.0,13.829,13.821,114.2529]
[1672813573126,54.29,13.828,13.821,114.2529]
[1672813573438,54.29,13.828,13.813,72.4851]
[1672813573632,54.28,13.829,13.814,30.0]
[1672813574281,30.0,13.828,13.813,72.4851]
[1672813574584,54.29,13.827,13.813,72.4851]
[1672813574788,84.29,13.828,13.813,72.4851]
[1672813575220,54.29,13.828,13.814,30.0]
[1672813575429,54.28,13.829,13.814,30.0]
[1672813575845,46.9161,13.833,13.814,30.0]
[1672813576062,46.9161,13.833,13.816,30.0]
[1672813576282,54.27,13.832,13.817,20.0]
[1672813577016,54.27,13.832,13.818,2.589]
[1672813577661,54.27,13.832,13.818,32.589]
[1672813577849,54.27,13.832,13.819,20.0]
[1672813578493,30.0,13.831,13.819,20.0]
[1672813578695,54.28,13.83,13.818,20.0]
[1672813579443,75.61,13.83,13.818,20.0]
[1672813581320,30.0,13.829,13.818,20.0]
[1672813581965,75.61,13.83,13.818,20.0]
[1672813583111,30.0,13.829,13.818,20.0]
[1672813584070,54.29,13.828,13.818,20.0]
[1672813584782,30.0,13.827,13.818,20.0]
[1672813584994,54.3,13.826,13.81,0.06]
[1672813585212,21.27,13.82,13.81,0.06]
[1672813585420,54.32,13.819,13.81,0.06]
[1672813588072,30.0,13.818,13.81,0.06]
[1672813589026,21.27,13.82,13.81,0.06]
[1672813589333,21.27,13.82,13.81,20.06]
[1672813589549,30.0,13.822,13.81,20.06]
[1672813590675,194.1069,13.825,13.81,0.06]
[1672813590896,164.1069,13.825,13.81,0.06]
[1672813591104,30.0,13.824,13.81,21.95481238]
[1672813591325,54.31,13.823,13.81,36.7]
[1672813591748,54.31,13.823,13.81,0.06]
[1672813592065,106.98,13.85,13.812,30.0]
[1672813592270,114.4432,13.842,13.823,54.31]
[1672813592590,114.4432,13.842,13.824,91.64]
[1672813592591,30.0,13.841,13.824,91.64]
[1672813592793,30.0,13.841,13.824,158.82049726]
[1672813592794,54.24,13.84,13.824,158.82049726]
[1672813592999,30.0,13.839,13.824,158.82049726]
[1672813593214,54.25,13.838,13.826,30.0]
[1672813593536,54.24,13.84,13.827,20.0]
[1672813593940,54.24,13.84,13.828,45.28568488]
[1672813594152,54.24,13.84,13.829,20.0]
[1672813594673,30.0,13.839,13.829,20.0]
[1672813594890,30.0,13.839,13.827,20.0]
[1672813595515,54.25,13.838,13.827,20.0]
[1672813595941,54.24,13.84,13.827,20.0]
[1672813596467,54.26,13.835,13.827,20.0]
[1672813596687,30.0,13.834,13.824,20.0]
[1672813597422,54.27,13.833,13.824,20.0]
[1672813597824,54.26,13.834,13.824,20.0]
[1672813598036,54.26,13.835,13.825,30.0]
[1672813598246,54.25,13.838,13.826,20.0]
[1672813598767,54.25,13.838,13.826,112.56568488]
[1672813598979,54.25,13.838,13.826,65.28568488]
[1672813599416,54.25,13.838,13.826,110.60678245]
[1672813601100,30.0,13.839,13.826,110.60678245]
[1672813601522,54.25,13.838,13.826,110.60678245]
[1672813601722,30.0,13.835,13.826,110.60678245]
[1672813601927,84.26,13.835,13.826,65.32109757]
[1672813602142,84.26,13.835,13.826,20.0]
[1672813602467,54.26,13.835,13.825,20.0]
[1672813602681,54.26,13.835,13.824,20.0]
[1672813602891,30.0,13.834,13.824,20.0]
[1672813603288,50.0,13.826,13.824,20.0]
[1672813604442,70.1317028,13.854,13.829,46.85624646]
[1672813604667,70.1317028,13.854,13.827,100.0]
[1672813604668,30.0,13.845,13.83,98.82]
[1672813604881,30.0,13.845,13.83,201.03730217]
[1672813605199,30.0,13.843,13.832,30.0]
[1672813605395,30.0,13.843,13.833,20.0]
[1672813605609,30.0,13.843,13.833,71.08953793]
[1672813605817,30.0,13.843,13.834,51.08953793]
[1672813606033,30.0,13.843,13.835,20.0]
[1672813606238,30.0,13.843,13.829,54.28]
[1672813606454,30.0,13.841,13.827,54.29]
[1672813606663,54.24,13.84,13.827,30.0]
[1672813607093,30.0,13.841,13.826,101.6356]
[1672813607406,30.0,13.839,13.826,123.53041238]
[1672813607936,54.25,13.838,13.826,47.3356]
[1672813608857,54.25,13.838,13.827,30.0]
[1672813609066,30.0,13.839,13.826,47.3356]
[1672813609287,54.25,13.838,13.826,47.3356]
[1672813609503,54.26,13.835,13.826,47.3356]
[1672813609696,54.25,13.838,13.826,47.3356]
[1672813609904,54.25,13.838,13.825,163.90516424]
[1672813610118,54.25,13.838,13.826,71.12776424]
[1672813611194,54.25,13.838,13.827,30.0]
[1672813611506,54.24,13.839,13.828,20.0]
[1672813612960,54.24,13.839,13.827,20.0]
[1672813613171,54.24,13.839,13.827,50.0]
[1672813613380,54.24,13.839,13.827,146.34361685]
[1672813613594,23.2383,13.846,13.828,73.79481238]
[1672813613800,30.0,13.845,13.829,50.0]
[1672813614013,30.0,13.845,13.83,30.0]
[1672813614238,0.0024318,13.836,13.831,74.28]
[1672813614436,0.0024318,13.836,13.832,30.0]
[1672813614646,0.0024318,13.836,13.834,30.0]
[1672813614962,0.0024318,13.836,13.835,71.08953793]
[1672813615385,0.0024318,13.836,13.835,122.21730217]
[1672813618104,0.0024318,13.836,13.835,20.0]
[1672813618534,0.0024318,13.836,13.833,20.0]
[1672813620863,0.0024318,13.836,13.833,50.0]
[1672813621599,0.0024318,13.836,13.833,20.0]
[1672813621791,0.0024318,13.836,13.834,30.0]
[1672813621998,0.0024318,13.836,13.835,20.0]
[1672813624118,0.0024318,13.836,13.834,50.0]
[1672813625259,0.0024318,13.836,13.834,95.21585261]
[1672813625492,0.0024318,13.836,13.834,146.34361685]
[1672813625682,0.0024318,13.836,13.834,197.43315478]
[1672813627057,0.0024318,13.836,13.834,167.43315478]
[1672813627683,54.22,13.846,13.835,30.0]
[1672813627893,54.22,13.846,13.836,20.0]
[1672813628738,54.22,13.846,13.836,122.21730217]
[1672813629910,84.22,13.846,13.836,122.21730217]
[1672813630113,84.22,13.846,13.836,20.0]
[1672813630321,30.0,13.845,13.833,20.0]
[1672813630528,54.23,13.844,13.833,50.0]
[1672813630743,54.23,13.844,13.833,20.0]
[1672813631292,356.3189156,13.847,13.834,30.0]
[1672813631704,54.22,13.846,13.835,189.32796716]
[1672813632025,54.22,13.846,13.836,102.21730217]
[1672813632648,30.0,13.845,13.837,71.08953793]
[1672813632859,54.23,13.844,13.837,71.08953793]
[1672813633491,356.3189156,13.847,13.838,56.12487127]
[1672813633703,356.3189156,13.847,13.839,20.0]
[1672813633909,54.22,13.846,13.839,20.0]
[1672813634108,30.0,13.845,13.839,76.12487127]
[1672813634319,54.23,13.844,13.839,76.12487127]
[1672813635279,54.23,13.844,13.839,20.0]
[1672813635796,30.0,13.843,13.839,20.0]
[1672813636009,54.23,13.844,13.836,73.6324309]
[1672813636225,54.22,13.845,13.838,21.89481238]
[1672813636413,54.22,13.845,13.839,20.0]
[1672813636963,54.22,13.845,13.839,41.89481238]
[1672813637375,30.0,13.844,13.837,53.6324309]